Workbook

Sheet Day
B1: Dedicated Interface (Open Banking API) | H1: PSU Interface
A2: Date | B2: Uptime (%) | C2: Downtime (%) | D2: AISP Response(ms) | E2: Requests | F2: Errors | G2: Error Rate(%) | H2: Uptime (%) | I2: Downtime (%) | J2: AISP Response (ms) Web | K2: AISP Response (ms) Mobile | L2: BT MT Payment (ms)
A3: 2024-07-01 | B3: 0.9999906168 | C3: =1-B3 -> 9.383239657e-06 | D3: 390.6071123 | E3: 319719 | F3: =[1]Maintenance!B3 + [1]Maintenance!C3 -> 3 | G3: =F3/(F3+E3) -> 9.383151613e-06 | H3: 0.9993423404 | I3: =1-H3 -> 0.0006576595568 | J3: 310.356642 | K3: 357.6448525 | L3: 1941.491647
A4: 2024-07-02 | B4: 1 | C4: =1-B4 -> 0 | D4: 413.2026862 | E4: 312237 | F4: =[1]Maintenance!B4 + [1]Maintenance!C4 -> 0 | G4: =F4/(F4+E4) -> 0 | H4: 0.9993076532 | I4: =1-H4 -> 0.0006923468078 | J4: 329.3563841 | K4: 339.4275483 | L4: 1918.27006
A5: 2024-07-03 | B5: 0.9840214587 | C5: =1-B5 -> 0.01597854127 | D5: 527.3846629 | E5: 311668 | F5: =[1]Maintenance!B5 + [1]Maintenance!C5 -> 4980 | G5: =F5/(F5+E5) -> 0.01572724287 | H5: 0.97528644 | I5: =1-H5 -> 0.02471355997 | J5: 381.1401757 | K5: 366.7953188 | L5: 2054.480182
A6: 2024-07-04 | B6: 0.9999937392 | C6: 6.260780281e-06 | D6: 409.6094802 | E6: 319449 | F6: =[1]Maintenance!B6 + [1]Maintenance!C6 -> 2 | G6: =F6/(F6+E6) -> 6.260741084e-06 | H6: 0.9992904154 | I6: 0.0007095845543 | J6: 329.914223 | K6: 353.4774643 | L6: 1992.51824
A7: 2024-07-05 | B7: 1 | C7: 0 | D7: 498.6741648 | E7: 325233 | F7: =[1]Maintenance!B7 + [1]Maintenance!C7 -> 0 | G7: 0 | H7: 0.9995336764 | I7: 0.0004663235862 | J7: 315.8376801 | K7: 339.2061711 | L7: 2012.421286
A8: 2024-07-06 | B8: 0.9999937652 | C8: 6.234783232e-06 | D8: 405.9833512 | E8: 320781 | F8: =[1]Maintenance!B8 + [1]Maintenance!C8 -> 2 | G8: 6.23474436e-06 | H8: 0.9995874082 | I8: 0.0004125918252 | J8: 310.7527176 | K8: 324.5464758 | L8: 1931.332065
A9: 2024-07-07 | B9: 0.9999873364 | C9: 1.266359785e-05 | D9: 434.6605665 | E9: 315866 | F9: =[1]Maintenance!B9 + [1]Maintenance!C9 -> 4 | G9: 1.266343749e-05 | H9: 0.9996105836 | I9: 0.0003894163799 | J9: 311.9025224 | K9: 326.8325244 | L9: 1904.87512
A10: 2024-07-08 | B10: 0.9999939312 | C10: 6.068789732e-06 | D10: 485.0775468 | E10: 329555 | F10: =[1]Maintenance!B10 + [1]Maintenance!C10 -> 2 | G10: 6.068752902e-06 | H10: 0.9994243909 | I10: 0.0005756090631 | J10: 382.7195761 | K10: 396.6794555 | L10: 2080.736796
A11: 2024-07-09 | B11: 0.9997117928 | C11: 0.0002882071694 | D11: 463.3209195 | E11: 329624 | F11: =[1]Maintenance!B11 + [1]Maintenance!C11 -> 95 | G11: =F11/(F11+E11) -> 0.0002881241299 | H11: 0.9892386896 | I11: 0.01076131039 | J11: 507.3112449 | K11: 601.2584924 | L11: 2105.543174
A12: 2024-07-10 | B12: 0.9999939013 | C12: 6.098695184e-06 | D12: 436.2792572 | E12: 327939 | F12: =[1]Maintenance!B12 + [1]Maintenance!C12 -> 2 | G12: 6.09865799e-06 | H12: 0.9990576238 | I12: 0.0009423761535 | J12: 324.9078162 | K12: 354.1179348 | L12: 2001.801474
A13: 2024-07-11 | B13: 0.9999815715 | C13: 1.84285372e-05 | D13: 481.6840315 | E13: 325582 | F13: =[1]Maintenance!B13 + [1]Maintenance!C13 -> 6 | G13: 1.84281976e-05 | H13: 0.9990124156 | I13: 0.0009875843755 | J13: 319.030834 | K13: 345.5610877 | L13: 2126.063821
A14: 2024-07-12 | B14: 1 | C14: 0 | D14: 490.0827528 | E14: 326321 | F14: =[1]Maintenance!B14 + [1]Maintenance!C14 -> 0 | G14: 0 | H14: 0.9991129043 | I14: 0.0008870957148 | J14: 290.3184686 | K14: 345.0651636 | L14: 2075.627252
A15: 2024-07-13 | B15: 1 | C15: 0 | D15: 462.2963982 | E15: 327234 | F15: =[1]Maintenance!B15 + [1]Maintenance!C15 -> 0 | G15: 0 | H15: 0.9995807582 | I15: 0.0004192418155 | J15: 268.9915786 | K15: 327.1144306 | L15: 2064.452456
A16: 2024-07-14 | B16: 0.9999874728 | C16: 1.252724676e-05 | D16: 446.9666873 | E16: 319304 | F16: =[1]Maintenance!B16 + [1]Maintenance!C16 -> 4 | G16: 1.252708983e-05 | H16: 0.9995519991 | I16: 0.0004480008865 | J16: 214.0618544 | K16: 331.8773353 | L16: 1951.716088
A17: 2024-07-15 | B17: 0.9999816198 | C17: 1.838021309e-05 | D17: 478.7135158 | E17: 326438 | F17: =[1]Maintenance!B17 + [1]Maintenance!C17 -> 6 | G17: 1.837987526e-05 | H17: 0.9994300763 | I17: 0.0005699237122 | J17: 304.1977476 | K17: 349.2145113 | L17: 1907.286767
A18: 2024-07-16 | B18: 0.9999627385 | C18: 3.726152623e-05 | D18: 469.0407813 | E18: 322048 | F18: =[1]Maintenance!B18 + [1]Maintenance!C18 -> 12 | G18: 3.726013786e-05 | H18: 0.9984630052 | I18: 0.001536994819 | J18: 325.3102002 | K18: 360.8095372 | L18: 2114.430048
A19: 2024-07-17 | B19: 1 | C19: 0 | D19: 512.970955 | E19: 326031 | F19: =[1]Maintenance!B19 + [1]Maintenance!C19 -> 0 | G19: 0 | H19: 0.9987536443 | I19: 0.001246355707 | J19: 312.3071999 | K19: 335.246382 | L19: 2016.328284
A20: 2024-07-18 | B20: 0.9999938514 | C20: 6.148643455e-06 | D20: 498.0183539 | E20: 325275 | F20: =[1]Maintenance!B20 + [1]Maintenance!C20 -> 2 | G20: 6.14860565e-06 | H20: 0.9995209055 | I20: 0.0004790944743 | J20: 310.5927576 | K20: 321.1263998 | L20: 2015.607295
A21: 2024-07-19 | B21: 1 | C21: 0 | D21: 528.8276184 | E21: 332822 | F21: =[1]Maintenance!B21 + [1]Maintenance!C21 -> 0 | G21: 0 | H21: 0.9989432552 | I21: 0.001056744819 | J21: 307.6037352 | K21: 325.7288938 | L21: 2233.826018
A22: 2024-07-20 | B22: 0.9999847091 | C22: 1.529094073e-05 | D22: 505.5583208 | E22: 326991 | F22: =[1]Maintenance!B22 + [1]Maintenance!C22 -> 5 | G22: 1.529070692e-05 | H22: 0.9996839203 | I22: 0.0003160796961 | J22: 289.0459154 | K22: 312.0786586 | L22: 2027.423984
A23: 2024-07-21 | B23: 0.9999938812 | C23: 6.118808913e-06 | D23: 459.4332706 | E23: 326861 | F23: =[1]Maintenance!B23 + [1]Maintenance!C23 -> 2 | G23: 6.118771473e-06 | H23: 0.9996476077 | I23: 0.000352392328 | J23: 297.4054619 | K23: 309.5784654 | L23: 1881.761928
A24: 2024-07-22 | B24: 0.9999941055 | C24: 5.894488653e-06 | D24: 504.284692 | E24: 339300 | F24: =[1]Maintenance!B24 + [1]Maintenance!C24 -> 2 | G24: 5.894453908e-06 | H24: 0.9995493715 | I24: 0.0004506285177 | J24: 311.9816953 | K24: 336.8921192 | L24: 1950.04397
A25: 2024-07-23 | B25: 0.9999881109 | C25: 1.188908671e-05 | D25: 492.1088067 | E25: 336443 | F25: =[1]Maintenance!B25 + [1]Maintenance!C25 -> 4 | G25: 1.188894536e-05 | H25: 0.9994425945 | I25: 0.0005574055216 | J25: 308.4172184 | K25: 329.7507009 | L25: 2021.669676
A26: 2024-07-24 | B26: 0.9999882335 | C26: 1.176647085e-05 | D26: 547.2704908 | E26: 339949 | F26: =[1]Maintenance!B26 + [1]Maintenance!C26 -> 4 | G26: 1.17663324e-05 | H26: 0.9994451954 | I26: 0.0005548045562 | J26: 299.3609886 | K26: 322.4943629 | L26: 1871.07875
A27: 2024-07-25 | B27: 0.9999942123 | C27: 5.787706911e-06 | D27: 564.972609 | E27: 345560 | F27: =[1]Maintenance!B27 + [1]Maintenance!C27 -> 2 | G27: 5.787673413e-06 | H27: 0.9995613413 | I27: 0.0004386586927 | J27: 317.9542604 | K27: 316.9733803 | L27: 1883.583681
A28: 2024-07-26 | B28: 0.9999711943 | C28: 2.880574271e-05 | D28: 523.5112722 | E28: 347153 | F28: =[1]Maintenance!B28 + [1]Maintenance!C28 -> 10 | G28: 2.880491297e-05 | H28: 0.9995255686 | I28: 0.0004744314199 | J28: 347.2309542 | K28: 319.9971115 | L28: 1808.551236
A29: 2024-07-27 | B29: 0.9999851439 | C29: 1.485614792e-05 | D29: 487.3999628 | E29: 336561 | F29: =[1]Maintenance!B29 + [1]Maintenance!C29 -> 5 | G29: 1.485592722e-05 | H29: 0.9991389736 | I29: 0.0008610263985 | J29: 334.5451436 | K29: 302.7746922 | L29: 1937.304518
A30: 2024-07-28 | B30: 0.999994059 | C30: 5.940994047e-06 | D30: 521.6063224 | E30: 336644 | F30: =[1]Maintenance!B30 + [1]Maintenance!C30 -> 2 | G30: 5.940958752e-06 | H30: 0.9994869146 | I30: 0.0005130853757 | J30: 330.8995978 | K30: 296.6509435 | L30: 1836.725391
A31: 2024-07-29 | B31: 1 | C31: 0 | D31: 602.9540832 | E31: 343501 | F31: =[1]Maintenance!B31 + [1]Maintenance!C31 -> 0 | G31: 0 | H31: 0.9983305606 | I31: 0.001669439415 | J31: 330.9496909 | K31: 312.361748 | L31: 1770.947969
A32: 2024-07-30 | B32: 0.9999826171 | C32: 1.738289002e-05 | D32: 494.7721648 | E32: 345167 | F32: =[1]Maintenance!B32 + [1]Maintenance!C32 -> 6 | G32: 1.738258786e-05 | H32: 0.9974794863 | I32: 0.002520513651 | J32: 346.1160914 | K32: 317.1505964 | L32: 1960.144852
A33: 2024-07-31 | B33: 0.9999436764 | C33: 5.632359029e-05 | D33: 569.341495 | E33: 355091 | F33: =[1]Maintenance!B33 + [1]Maintenance!C33 -> 20 | G33: 5.632041812e-05 | H33: 0.9975678045 | I33: 0.002432195504 | J33: 379.7665662 | K33: 375.7290075 | L33: 1840.43598
A34: 2024-08-01 | B34: 1 | C34: 0 | D34: 660.8452676 | E34: 353701 | F34: =[1]Maintenance!B34 + [1]Maintenance!C34 -> 0 | G34: 0 | H34: 0.9989899563 | I34: 0.00101004366 | J34: 337.7011021 | K34: 325.5247892 | L34: 1763.757773
A35: 2024-08-02 | B35: 1 | C35: 0 | D35: 630.3972621 | E35: 337782 | F35: =[1]Maintenance!B35 + [1]Maintenance!C35 -> 0 | G35: 0 | H35: 0.9992904939 | I35: 0.0007095060974 | J35: 331.7576092 | K35: 324.4660175 | L35: 1842.66863
A36: 2024-08-03 | B36: 1 | C36: 0 | D36: 494.8111093 | E36: 336440 | F36: =[1]Maintenance!B36 + [1]Maintenance!C36 -> 0 | G36: 0 | H36: 0.9996619922 | I36: 0.0003380078297 | J36: 307.227726 | K36: 303.2280385 | L36: 1820.31444
A37: 2024-08-04 | B37: 1 | C37: 0 | D37: 475.4667649 | E37: 338267 | F37: =[1]Maintenance!B37 + [1]Maintenance!C37 -> 0 | G37: 0 | H37: 0.9996443954 | I37: 0.0003556046169 | J37: 307.2106267 | K37: 303.0400891 | L37: 1764.628119
A38: 2024-08-05 | B38: 0.9999215586 | C38: 7.844139846e-05 | D38: 540.1477875 | E38: 344206 | F38: =[1]Maintenance!B38 + [1]Maintenance!C38 -> 27 | G38: 7.843524589e-05 | H38: 0.9996081815 | I38: 0.0003918184641 | J38: 311.3154909 | K38: 327.9002928 | L38: 1744.65601
A39: 2024-08-06 | B39: 0.9999556335 | C39: 4.436649088e-05 | D39: 534.8871399 | E39: 338093 | F39: =[1]Maintenance!B39 + [1]Maintenance!C39 -> 15 | G39: 4.436452258e-05 | H39: 0.9990291045 | I39: 0.0009708955413 | J39: 348.9561155 | K39: 349.0383299 | L39: 1922.413657
A40: 2024-08-07 | B40: 0.9999245097 | C40: 7.549032417e-05 | D40: 465.5875911 | E40: 344415 | F40: =[1]Maintenance!B40 + [1]Maintenance!C40 -> 26 | G40: 7.548462581e-05 | H40: 0.9994995676 | I40: 0.0005004324231 | J40: 316.7692738 | K40: 327.4819918 | L40: 1837.393672
A41: 2024-08-08 | B41: 0.9999739691 | C41: 2.603089578e-05 | D41: 490.9119819 | E41: 345743 | F41: =[1]Maintenance!B41 + [1]Maintenance!C41 -> 9 | G41: 2.603021819e-05 | H41: 0.9995389489 | I41: 0.000461051057 | J41: 323.5164236 | K41: 331.6730823 | L41: 1742.405443
A42: 2024-08-09 | B42: 0.9999768481 | C42: 2.315189961e-05 | D42: 474.7371602 | E42: 345544 | F42: =[1]Maintenance!B42 + [1]Maintenance!C42 -> 8 | G42: 2.315136362e-05 | H42: 0.9995497392 | I42: 0.0004502607949 | J42: 330.6286612 | K42: 318.1601242 | L42: 1748.42236
A43: 2024-08-10 | B43: 1 | C43: 0 | D43: 480.3970729 | E43: 345215 | F43: =[1]Maintenance!B43 + [1]Maintenance!C43 -> 0 | G43: 0 | H43: 0.9995402403 | I43: 0.0004597596778 | J43: 320.8961118 | K43: 306.1787191 | L43: 1764.72739
A44: 2024-08-11 | B44: 0.9977320633 | C44: 0.002267936711 | D44: 984.3034016 | E44: 337311 | F44: =[1]Maintenance!B44 + [1]Maintenance!C44 -> 765 | G44: 0.002262804813 | H44: 0.9969267143 | I44: 0.003073285701 | J44: 322.8484329 | K44: 311.6489323 | L44: 1681.739995
A45: 2024-08-12 | B45: 1 | C45: 0 | D45: 514.3170394 | E45: 347737 | F45: =[1]Maintenance!B45 + [1]Maintenance!C45 -> 0 | G45: 0 | H45: 0.9994777929 | I45: 0.0005222070939 | J45: 336.375043 | K45: 331.1347829 | L45: 1744.985527
A46: 2024-08-13 | B46: 1 | C46: 0 | D46: 493.3037201 | E46: 355751 | F46: =[1]Maintenance!B46 + [1]Maintenance!C46 -> 0 | G46: 0 | H46: 0.9993956188 | I46: 0.0006043812346 | J46: 363.0464198 | K46: 322.4048899 | L46: 1867.500529
A47: 2024-08-14 | B47: 0.9999944039 | C47: 5.596064847e-06 | D47: 527.0120951 | E47: 357394 | F47: =[1]Maintenance!B47 + [1]Maintenance!C47 -> 2 | G47: 5.596033531e-06 | H47: 0.999504394 | I47: 0.0004956060248 | J47: 350.6286023 | K47: 316.6979917 | L47: 1916.658223
A48: 2024-08-15 | B48: 0.9999583896 | C48: 4.161037707e-05 | D48: 526.6772401 | E48: 360487 | F48: =[1]Maintenance!B48 + [1]Maintenance!C48 -> 15 | G48: 4.160864572e-05 | H48: 0.9990871789 | I48: 0.0009128210936 | J48: 363.5229952 | K48: 348.3741267 | L48: 1854.561216
A49: 2024-08-16 | B49: 1 | C49: 0 | D49: 516.7213055 | E49: 358323 | F49: =[1]Maintenance!B49 + [1]Maintenance!C49 -> 0 | G49: 0 | H49: 0.9995424496 | I49: 0.0004575503899 | J49: 360.3846131 | K49: 318.3866745 | L49: 1935.046129
A50: 2024-08-17 | B50: 1 | C50: 0 | D50: 459.247813 | E50: 349846 | F50: =[1]Maintenance!B50 + [1]Maintenance!C50 -> 0 | G50: 0 | H50: 0.9996677378 | I50: 0.0003322622297 | J50: 330.4360143 | K50: 297.6216336 | L50: 1909.315606
A51: 2024-08-18 | B51: 1 | C51: 0 | D51: 489.9888015 | E51: 351404 | F51: =[1]Maintenance!B51 + [1]Maintenance!C51 -> 0 | G51: 0 | H51: 0.9990734668 | I51: 0.0009265332241 | J51: 336.5691015 | K51: 302.6248494 | L51: 1780.99102
A52: 2024-08-19 | B52: 0.9999916353 | C52: 8.364747608e-06 | D52: 485.0028623 | E52: 358648 | F52: =[1]Maintenance!B52 + [1]Maintenance!C52 -> 3 | G52: 8.364677639e-06 | H52: 0.999386886 | I52: 0.0006131139665 | J52: 338.94141 | K52: 368.5268713 | L52: 1718.883032
A53: 2024-08-20 | B53: 0.9999723186 | C53: 2.768135439e-05 | D53: 497.7936971 | E53: 361254 | F53: =[1]Maintenance!B53 + [1]Maintenance!C53 -> 10 | G53: 2.768058816e-05 | H53: 0.9993987797 | I53: 0.0006012202529 | J53: 345.1193723 | K53: 319.9311952 | L53: 1897.534394
A54: 2024-08-21 | B54: 0.999972503 | C54: 2.749700283e-05 | D54: 493.969175 | E54: 363676 | F54: =[1]Maintenance!B54 + [1]Maintenance!C54 -> 10 | G54: 2.749624676e-05 | H54: 0.999485332 | I54: 0.0005146680391 | J54: 356.5639883 | K54: 321.2090735 | L54: 1841.544959
A55: 2024-08-22 | B55: 0.9999866074 | C55: 1.339258212e-05 | D55: 565.1815959 | E55: 373341 | F55: =[1]Maintenance!B55 + [1]Maintenance!C55 -> 5 | G55: 1.339240276e-05 | H55: 0.9994190661 | I55: 0.0005809338766 | J55: 350.8088082 | K55: 344.9860115 | L55: 1911.354004
A56: 2024-08-23 | B56: 0.9999944951 | C56: 5.504940684e-06 | D56: 456.4457909 | E56: 363310 | F56: =[1]Maintenance!B56 + [1]Maintenance!C56 -> 2 | G56: 5.50491038e-06 | H56: 0.9994076666 | I56: 0.0005923333673 | J56: 371.9764757 | K56: 385.7539481 | L56: 1772.239034
A57: 2024-08-24 | B57: 1 | C57: 0 | D57: 514.0176254 | E57: 354442 | F57: =[1]Maintenance!B57 + [1]Maintenance!C57 -> 0 | G57: 0 | H57: 0.9996491471 | I57: 0.000350852913 | J57: 344.23623 | K57: 290.7219143 | L57: 1812.392269
A58: 2024-08-25 | B58: 1 | C58: 0 | D58: 532.1267355 | E58: 349659 | F58: =[1]Maintenance!B58 + [1]Maintenance!C58 -> 0 | G58: 0 | H58: 0.9996578864 | I58: 0.0003421135585 | J58: 338.4316189 | K58: 287.7769584 | L58: 1779.824818
A59: 2024-08-26 | B59: 0.9999887749 | C59: 1.122507682e-05 | D59: 434.2111875 | E59: 356345 | F59: =[1]Maintenance!B59 + [1]Maintenance!C59 -> 4 | G59: 1.122495082e-05 | H59: 0.9996243715 | I59: 0.0003756284632 | J59: 334.2049399 | K59: 302.1046557 | L59: 1758.569814
A60: 2024-08-27 | B60: 0.9999421606 | C60: 5.783944871e-05 | D60: 419.6081881 | E60: 363074 | F60: =[1]Maintenance!B60 + [1]Maintenance!C60 -> 21 | G60: 5.78361035e-05 | H60: 0.9993738694 | I60: 0.0006261306108 | J60: 380.2887173 | K60: 326.7462186 | L60: 1788.505834
A61: 2024-08-28 | B61: 0.9999680165 | C61: 3.198353914e-05 | D61: 421.8486992 | E61: 375193 | F61: =[1]Maintenance!B61 + [1]Maintenance!C61 -> 12 | G61: 3.198251622e-05 | H61: 0.9993487422 | I61: 0.0006512577981 | J61: 360.5823541 | K61: 314.6460848 | L61: 1856.805524
A62: 2024-08-29 | B62: 1 | C62: 0 | D62: 476.4634944 | E62: 368985 | F62: =[1]Maintenance!B62 + [1]Maintenance!C62 -> 0 | G62: 0 | H62: 0.9995155457 | I62: 0.0004844542563 | J62: 351.4413256 | K62: 300.9753423 | L62: 1779.059463
A63: 2024-08-30 | B63: 1 | C63: 0 | D63: 543.5089955 | E63: 370000 | F63: =[1]Maintenance!B63 + [1]Maintenance!C63 -> 0 | G63: 0 | H63: 0.9993722319 | I63: 0.0006277681249 | J63: 377.0788605 | K63: 311.494201 | L63: 1916.05893
A64: 2024-08-31 | B64: 0.9999669514 | C64: 3.304856487e-05 | D64: 536.7652012 | E64: 363102 | F64: =[1]Maintenance!B64 + [1]Maintenance!C64 -> 12 | G64: 3.304747269e-05 | H64: 0.9992034105 | I64: 0.0007965894766 | J64: 360.4142511 | K64: 296.0679706 | L64: 1826.020859
A65: 2024-09-01 | B65: 1 | C65: 0 | D65: 600.6429793 | E65: 367585 | F65: =[1]Maintenance!B65 + [1]Maintenance!C65 -> 0 | G65: 0 | H65: 0.998854059 | I65: 0.001145941047 | J65: 313.307191 | K65: 295.1995011 | L65: 1763.504297
A66: 2024-09-02 | B66: 0.9993400704 | C66: 0.0006599295545 | D66: 523.5032932 | E66: 377313 | F66: =[1]Maintenance!B66 + [1]Maintenance!C66 -> 249 | G66: 0.0006594943347 | H66: 0.9992011435 | I66: 0.00079885648 | J66: 358.6591949 | K66: 329.5572163 | L66: 1708.36493
A67: 2024-09-03 | B67: 1 | C67: 0 | D67: 463.6680377 | E67: 366400 | F67: =[1]Maintenance!B67 + [1]Maintenance!C67 -> 0 | G67: 0 | H67: 0.9992312161 | I67: 0.000768783936 | J67: 370.5907695 | K67: 333.32799 | L67: 1884.50062
A68: 2024-09-04 | B68: 0.9999892037 | C68: 1.079625046e-05 | D68: 483.2892783 | E68: 370499 | F68: =[1]Maintenance!B68 + [1]Maintenance!C68 -> 4 | G68: 1.07961339e-05 | H68: 0.9995727473 | I68: 0.0004272527288 | J68: 353.8334065 | K68: 313.2645592 | L68: 1938.306478
A69: 2024-09-05 | B69: 0.9999838997 | C69: =1-B69 -> 1.61002941e-05 | D69: 458.0304399 | E69: 372664 | F69: =[1]Maintenance!B69 + [1]Maintenance!C69 -> 6 | G69: 1.610003488e-05 | H69: 0.9994530385 | I69: =1-H69 -> 0.0005469615313 | J69: 356.1354409 | K69: 313.1602991 | L69: 1775.273104
A70: 2024-09-06 | B70: 0.9999810953 | C70: 1.890466378e-05 | D70: 454.4506675 | E70: 370279 | F70: =[1]Maintenance!B70 + [1]Maintenance!C70 -> 7 | G70: =F70/(F70+E70) -> 1.89043064e-05 | H70: 0.99898852 | I70: 0.001011480009 | J70: 358.4746887 | K70: 307.0789589 | L70: 2040.647131
A71: 2024-09-07 | B71: 1 | C71: 0 | D71: 460.7102978 | E71: 368784 | F71: =[1]Maintenance!B71 + [1]Maintenance!C71 -> 0 | G71: 0 | H71: 0.9995598283 | I71: 0.0004401717391 | J71: 340.3242367 | K71: 293.5420721 | L71: 2017.113898
A72: 2024-09-08 | B72: 1 | C72: 0 | D72: 574.6094837 | E72: 362818 | F72: =[1]Maintenance!B72 + [1]Maintenance!C72 -> 0 | G72: 0 | H72: 0.9996651018 | I72: 0.0003348982085 | J72: 345.9919439 | K72: 301.8776009 | L72: 1742.022972
A73: 2024-09-09 | B73: 0.9996228101 | C73: 0.0003771899084 | D73: 505.9423876 | E73: 373817 | F73: =[1]Maintenance!B73 + [1]Maintenance!C73 -> 141 | G73: 0.0003770476898 | H73: 0.9957512319 | I73: 0.004248768058 | J73: 377.4357188 | K73: 347.8996297 | L73: 1734.488917
A74: 2024-09-10 | B74: 0.9999920313 | C74: 7.968677784e-06 | D74: 623.6371542 | E74: 376474 | F74: =[1]Maintenance!B74 + [1]Maintenance!C74 -> 3 | G74: 7.968614285e-06 | H74: 0.9990625463 | I74: 0.0009374537441 | J74: 348.4432636 | K74: 313.3144935 | L74: 1786.49277
A75: 2024-09-11 | B75: 1 | C75: 0 | D75: 529.0808896 | E75: 384458 | F75: =[1]Maintenance!B75 + [1]Maintenance!C75 -> 0 | G75: 0 | H75: 0.9992551038 | I75: 0.0007448961936 | J75: 347.0630294 | K75: 319.6950821 | L75: 1835.757399
A76: 2024-09-12 | B76: 0.7938127034 | C76: 0.2061872966 | D76: 587.4018528 | E76: 417242 | F76: =[1]Maintenance!B76 + [1]Maintenance!C76 -> 86030 | G76: 0.1709413597 | H76: 0.9969143631 | I76: 0.003085636936 | J76: 602.7105583 | K76: 625.9925653 | L76: 1842.844657
A77: 2024-09-13 | B77: 0.9999791312 | C77: 2.086876676e-05 | D77: 573.1536684 | E77: 383348 | F77: =[1]Maintenance!B77 + [1]Maintenance!C77 -> 8 | G77: 2.086833126e-05 | H77: 0.999455 | I77: 0.000544999991 | J77: 365.2264445 | K77: 301.7112021 | L77: 1785.590016
A78: 2024-09-14 | B78: 0.9999794364 | C78: 2.056364964e-05 | D78: 447.475495 | E78: 389036 | F78: =[1]Maintenance!B78 + [1]Maintenance!C78 -> 8 | G78: 2.056322678e-05 | H78: 0.9996306229 | I78: 0.000369377095 | J78: 344.3716895 | K78: 289.1899307 | L78: 1837.99181
A79: 2024-09-15 | B79: 0.9999948029 | C79: 5.197113523e-06 | D79: 511.6687203 | E79: 384829 | F79: =[1]Maintenance!B79 + [1]Maintenance!C79 -> 2 | G79: 5.197086513e-06 | H79: 0.999626008 | I79: 0.0003739919978 | J79: 337.6962333 | K79: 290.3768863 | L79: 1720.980847
A80: 2024-09-16 | B80: 1 | C80: 0 | D80: 575.2664742 | E80: 388762 | F80: =[1]Maintenance!B80 + [1]Maintenance!C80 -> 0 | G80: 0 | H80: 0.9991079753 | I80: 0.0008920247175 | J80: 362.9375556 | K80: 322.9368008 | L80: 1821.543382
A81: 2024-09-17 | B81: 0.9999659476 | C81: 3.405236206e-05 | D81: 539.2568852 | E81: 381765 | F81: =[1]Maintenance!B81 + [1]Maintenance!C81 -> 13 | G81: 3.405120253e-05 | H81: 0.9993859404 | I81: 0.0006140595728 | J81: 363.4828908 | K81: 323.7609763 | L81: 1957.55557
A82: 2024-09-18 | B82: 1 | C82: 0 | D82: 481.8265162 | E82: 381120 | F82: =[1]Maintenance!B82 + [1]Maintenance!C82 -> 0 | G82: 0 | H82: 0.9994227259 | I82: 0.0005772740721 | J82: 359.754914 | K82: 314.9767294 | L82: 1897.81478
A83: 2024-09-19 | B83: 0.9999973904 | C83: 2.609623771e-06 | D83: 594.2446559 | E83: 383197 | F83: =[1]Maintenance!B83 + [1]Maintenance!C83 -> 1 | G83: 2.60961696e-06 | H83: 0.9994032582 | I83: 0.0005967418082 | J83: 358.3678614 | K83: 307.1346773 | L83: 1893.805579
A84: 2024-09-20 | B84: 0.9999844237 | C84: 1.557628355e-05 | D84: 479.0208009 | E84: 385201 | F84: =[1]Maintenance!B84 + [1]Maintenance!C84 -> 6 | G84: 1.557604093e-05 | H84: 0.9987048454 | I84: 0.001295154609 | J84: 374.949554 | K84: 308.2465821 | L84: 1949.11806
A85: 2024-09-21 | B85: 0.9999946843 | C85: 5.31567113e-06 | D85: 475.6359797 | E85: 376246 | F85: =[1]Maintenance!B85 + [1]Maintenance!C85 -> 2 | G85: 5.315642874e-06 | H85: 0.9995829443 | I85: 0.0004170556681 | J85: 334.4636078 | K85: 282.2443529 | L85: 1884.294246
A86: 2024-09-22 | B86: 1 | C86: 0 | D86: 493.4456683 | E86: 379361 | F86: =[1]Maintenance!B86 + [1]Maintenance!C86 -> 0 | G86: 0 | H86: 0.9993145693 | I86: 0.0006854307334 | J86: 326.0796107 | K86: 289.2556634 | L86: 1772.264314
A87: 2024-09-23 | B87: 0.9999713135 | C87: 2.868654731e-05 | D87: 527.4846271 | E87: 383455 | F87: =[1]Maintenance!B87 + [1]Maintenance!C87 -> 11 | G87: 2.868572442e-05 | H87: 0.9971680728 | I87: 0.002831927241 | J87: 362.3546942 | K87: 318.6427928 | L87: 1740.31014
A88: 2024-09-24 | B88: 1 | C88: 0 | D88: 511.9980399 | E88: 387593 | F88: =[1]Maintenance!B88 + [1]Maintenance!C88 -> 0 | G88: 0 | H88: 0.9993943334 | I88: 0.0006056665668 | J88: 351.923676 | K88: 307.8420095 | L88: 1873.845791
A89: 2024-09-25 | B89: 0.9999872427 | C89: 1.275728249e-05 | D89: 584.7796841 | E89: 391933 | F89: =[1]Maintenance!B89 + [1]Maintenance!C89 -> 5 | G89: 1.275711975e-05 | H89: 0.9988581107 | I89: 0.001141889269 | J89: 399.4486442 | K89: 318.652706 | L89: 1769.839516
A90: 2024-09-26 | B90: 0.9999632817 | C90: 3.67183171e-05 | D90: 518.2536975 | E90: 299578 | F90: =[1]Maintenance!B90 + [1]Maintenance!C90 -> 11 | G90: 3.671696891e-05 | H90: 0.9994450197 | I90: 0.000554980331 | J90: 330.5562719 | K90: 310.5411963 | L90: 1989.69285
A91: 2024-09-27 | B91: 1 | C91: 0 | D91: 477.4383415 | E91: 292506 | F91: =[1]Maintenance!B91 + [1]Maintenance!C91 -> 0 | G91: 0 | H91: 0.9986881455 | I91: 0.001311854536 | J91: 381.4212307 | K91: 307.9997528 | L91: 1975.515087
A92: 2024-09-28 | B92: 0.9999784277 | C92: 2.157233564e-05 | D92: 415.182196 | E92: 278134 | F92: =[1]Maintenance!B92 + [1]Maintenance!C92 -> 6 | G92: 2.157187028e-05 | H92: 0.999659964 | I92: 0.0003400360474 | J92: 329.2774509 | K92: 283.8747273 | L92: 1912.257446
A93: 2024-09-29 | B93: 1 | C93: 0 | D93: 378.1863643 | E93: 288949 | F93: =[1]Maintenance!B93 + [1]Maintenance!C93 -> 0 | G93: 0 | H93: 0.999477717 | I93: 0.0005222829924 | J93: 333.1117117 | K93: 287.4703488 | L93: 1792.831073
A94: 2024-09-30 | B94: 0.9999932782 | C94: 6.721762715e-06 | D94: 414.5853652 | E94: 297541 | F94: =[1]Maintenance!B94 + [1]Maintenance!C94 -> 2 | G94: 6.721717533e-06 | H94: 0.9991649276 | I94: 0.0008350723587 | J94: 377.9851614 | K94: 341.6689162 | L94: 1741.044069

Sheet Month
B1: Dedicated Interface (Open Banking API) | H1: PSU Interface
A2: Row Labels | B2: Average of Uptime (%) | C2: Average of Downtime (%) | D2: Average of AISP Response(ms) | E2: Average of Requests | F2: Average of Errors | G2: Average of Error Rate(%) | H2: Average of Uptime (%)2 | I2: Average of Downtime (%)2 | J2: Average of AISP Response (ms) Web | K2: Average of AISP Response (ms) Mobile | L2: Average of BT MT Payment (ms)
A3: Jul | B3: 0.9994649593 | C3: 0.000535040689 | D3: 487.3101397 | E3: 329753.129 | F3: 167.1612903 | G3: 0.0005269313574 | H3: 0.9980937911 | I3: 0.001906208893 | J3: 324.2028046 | K3: 343.6826376 | L3: 1975.434839
A4: Aug | B4: 0.9999103496 | C4: 8.965036836e-05 | D4: 520.5388323 | E4: 353828.6452 | F4: 30.51612903 | G4: 8.948404314e-05 | H4: 0.9730360381 | I4: 0.02696396194 | J4: 394.5764292 | K4: 320.5330903 | L4: 1816.160602
A5: Sep | B5: 0.9928454447 | C5: 0.007154555306 | D5: 512.0442957 | E5: 367701.5862 | F5: 2983.206897 | G5: 0.005939158058 | H5: 0.9990287639 | I5: 0.0009712361331 | J5: 361.6687408 | K5: 319.267838 | L5: 1849.812679
A6: Grand Total | B6: 0.99750717 | C6: 0.002492829963 | D6: 506.5121177 | E6: 350048.1429 | F6: 1018.032967 | G6: 0.002102686386 | H6: 0.9898555918 | I6: 0.01014440817 | J6: 360.1159311 | K6: 328.0159876 | L6: 1881.143147
